fUST/lending_fUST_20260416
["ID","MTS","AMOUNT","RATE_DAILY","PERIOD"]
[420618852,1776349843221,-739.0,8.573e-05,2]
[420618854,1776349843232,-184.0,8.573e-05,2]
[420618856,1776349843241,-441.0,8.573e-05,2]
[420618858,1776349843250,-334.87440899,8.625e-05,2]
[420618860,1776349843260,-189.014003,8.628e-05,2]
[420618862,1776349843269,-1089.5349,8.767e-05,2]
[420618864,1776349843278,-500.0,8.767e-05,2]
[420618866,1776349843287,-960.64,8.767e-05,2]
[420618868,1776349843297,-514.8,8.767e-05,2]
[420618870,1776349843305,-1027.71,8.767e-05,2]
[420618872,1776349843315,-1057.91,8.767e-05,2]
[420618873,1776349843324,-500.0,8.767e-05,2]
[420618874,1776349843333,-500.0,8.767e-05,2]
[420618876,1776349843342,-500.0,8.767e-05,2]
[420618878,1776349843351,-1248.39,8.767e-05,2]
[420618880,1776349843360,-500.0,8.767e-05,2]
[420618882,1776349843369,-500.0,8.767e-05,2]
[420618884,1776349843382,-500.0,8.767e-05,2]
[420618886,1776349843391,-609.53,8.767e-05,2]
[420618888,1776349843400,-500.0,8.767e-05,2]
[420618890,1776349843409,-542.37,8.767e-05,2]
[420618892,1776349843419,-500.0,8.767e-05,2]
[420618894,1776349843427,-500.0,8.767e-05,2]
[420618896,1776349843436,-526.86,8.767e-05,2]
[420618898,1776349843446,-500.0,8.767e-05,2]
[420618900,1776349843455,-500.0,8.767e-05,2]
[420618902,1776349843464,-500.0,8.767e-05,2]
[420618904,1776349843474,-500.0,8.767e-05,2]
[420618906,1776349843483,-500.0,8.767e-05,2]
[420618908,1776349843492,-505.5483726,8.767e-05,2]
[420618909,1776349843502,-500.0,8.767e-05,2]
[420618914,1776349843660,-500.0,8.767e-05,2]
[420618915,1776349843670,-500.0,8.767e-05,2]
[420618916,1776349843679,-500.0,8.767e-05,2]
[420618917,1776349843689,-500.0,8.767e-05,2]
[420618918,1776349843698,-575.27,8.767e-05,2]
[420618919,1776349843707,-506.53361185,8.767e-05,2]
[420618920,1776349843716,-500.0,8.767e-05,2]
[420618921,1776349843725,-509.81284987,8.767e-05,2]
[420618922,1776349843735,-505.34918234,8.767e-05,2]
[420618923,1776349843745,-500.0,8.767e-05,2]
[420618924,1776349843754,-500.0,8.767e-05,2]
[420618925,1776349843764,-1003.47190872,8.767e-05,2]
[420618926,1776349843773,-500.0,8.767e-05,2]
[420618927,1776349843782,-500.0,8.767e-05,2]
[420618928,1776349843792,-500.0,8.767e-05,2]
[420618929,1776349843801,-978.16,8.767e-05,2]
[420618930,1776349843811,-713.5,8.767e-05,2]
[420618931,1776349843820,-500.0,8.767e-05,2]
[420618932,1776349843829,-500.0,8.767e-05,2]
[420618933,1776349843839,-500.0,8.767e-05,2]
[420618934,1776349843848,-510.39142137,8.767e-05,2]
[420618935,1776349843858,-500.0,8.767e-05,2]
[420618936,1776349843867,-1486.68,8.767e-05,2]
[420618937,1776349843876,-510.52261995,8.767e-05,2]
[420618938,1776349843886,-500.0,8.767e-05,2]
[420618939,1776349843895,-1686.34,8.767e-05,2]
[420618941,1776349843904,-500.0,8.767e-05,2]
[420618942,1776349843913,-1432.92,8.767e-05,2]
[420618943,1776349843924,-500.0,8.767e-05,2]
[420618944,1776349843933,-500.0,8.767e-05,2]
[420618945,1776349843943,-500.0,8.767e-05,2]
[420618946,1776349843952,-1180.49,8.767e-05,2]
[420618947,1776349843961,-500.0,8.767e-05,2]
[420618948,1776349843970,-1089.22,8.767e-05,2]
[420618949,1776349843979,-500.0,8.767e-05,2]
[420618950,1776349843989,-2144.56,8.767e-05,2]
[420618951,1776349843998,-2230.24,8.767e-05,2]
[420618952,1776349844007,-500.0,8.767e-05,2]
[420618953,1776349844016,-500.0,8.767e-05,2]
[420618954,1776349844026,-545.97,8.767e-05,2]
[420618955,1776349844036,-900.42,8.767e-05,2]
[420618956,1776349844046,-815.34,8.767e-05,2]
[420618957,1776349844055,-500.0,8.767e-05,2]
[420618958,1776349844065,-500.0,8.767e-05,2]
[420618959,1776349844075,-802.57,8.767e-05,2]
[420618960,1776349844084,-1203.0,8.767e-05,2]
[420618961,1776349844093,-992.47,8.767e-05,2]
[420618962,1776349844103,-2089.18,8.767e-05,2]
[420618963,1776349844112,-1168.53,8.767e-05,2]
[420618964,1776349844121,-776.67,8.767e-05,2]
[420618965,1776349844132,-652.34,8.767e-05,2]
[420618966,1776349844142,-500.0,8.767e-05,2]
[420618967,1776349844151,-1011.5,8.767e-05,2]
[420618968,1776349844161,-500.0,8.767e-05,2]
[420618969,1776349844170,-500.0,8.767e-05,2]
[420618970,1776349844180,-696.84,8.767e-05,2]
[420618971,1776349844189,-500.0,8.767e-05,2]
[420618972,1776349844198,-5072.71,8.767e-05,2]
[420618973,1776349844208,-4631.84,8.767e-05,2]
[420618974,1776349844217,-4886.26,8.767e-05,2]
[420618975,1776349844226,-4617.27,8.767e-05,2]
[420618976,1776349844236,-997.19,8.767e-05,2]
[420618977,1776349844245,-500.0,8.767e-05,2]
[420618978,1776349844255,-500.0,8.767e-05,2]
[420618979,1776349844264,-614.02,8.767e-05,2]
[420618980,1776349844273,-520.65,8.767e-05,2]
[420618981,1776349844282,-777.18,8.767e-05,2]
[420618982,1776349844292,-500.0,8.767e-05,2]
[420618983,1776349844302,-500.0,8.767e-05,2]
[420618984,1776349844312,-945.99,8.767e-05,2]
[420618985,1776349844321,-500.0,8.767e-05,2]
[420618986,1776349844331,-1435.11,8.767e-05,2]
[420618987,1776349844340,-538.67,8.767e-05,2]
[420618988,1776349844350,-647.84,8.767e-05,2]
[420618989,1776349844361,-713.21,8.767e-05,2]
[420618990,1776349844371,-1896.62,8.767e-05,2]
[420618991,1776349844382,-500.0,8.767e-05,2]
[420618992,1776349844391,-629.75,8.767e-05,2]
[420618993,1776349844400,-500.0,8.767e-05,2]
[420618994,1776349844410,-500.0,8.767e-05,2]
[420618995,1776349844419,-500.0,8.767e-05,2]
[420618996,1776349844428,-630.18,8.767e-05,2]
[420618997,1776349844438,-890.38,8.767e-05,2]
[420618998,1776349844448,-500.0,8.767e-05,2]
[420618999,1776349844457,-4667.01,8.767e-05,2]
[420619000,1776349844466,-1909.41,8.767e-05,2]
[420619001,1776349844475,-500.0,8.767e-05,2]
[420619002,1776349844485,-500.0,8.767e-05,2]
[420619003,1776349844494,-502.6,8.767e-05,2]
[420619004,1776349844504,-1820.83,8.767e-05,2]
[420619005,1776349844514,-1348.39,8.767e-05,2]
[420619006,1776349844523,-3132.46,8.767e-05,2]
[420619007,1776349844532,-23049.0,8.767e-05,2]
[420619008,1776349844541,-623.2,8.767e-05,2]
[420619009,1776349844550,-500.0,8.767e-05,2]
[420619010,1776349844560,-500.0,8.767e-05,2]
[420619011,1776349844569,-4548.28,8.767e-05,2]
[420619012,1776349844578,-500.0,8.767e-05,2]
[420619013,1776349844587,-26412.78,8.767e-05,2]
[420619014,1776349844596,-1412.28,8.767e-05,2]
[420619015,1776349844606,-1581.06,8.767e-05,2]
[420619016,1776349844616,-5627.94,8.767e-05,2]
[420619017,1776349844625,-1679.67,8.767e-05,2]
[420619018,1776349844635,-500.0,8.767e-05,2]
[420619019,1776349844644,-500.0,8.767e-05,2]
[420619020,1776349844653,-16472.74,8.767e-05,2]
[420619021,1776349844662,-1188.59,8.767e-05,2]
[420619022,1776349844671,-500.0,8.767e-05,2]
[420619023,1776349844680,-500.0,8.767e-05,2]
[420619024,1776349844689,-500.0,8.767e-05,2]
[420619025,1776349844698,-890.45,8.767e-05,2]
[420619026,1776349844707,-1576.7,8.767e-05,2]
[420619027,1776349844716,-717.51,8.767e-05,2]
[420619028,1776349844726,-1486.49,8.767e-05,2]
[420619029,1776349844735,-1196.33,8.767e-05,2]
[420619030,1776349844744,-7846.61,8.767e-05,2]
[420619031,1776349844754,-6892.75,8.767e-05,2]
[420619032,1776349844763,-4451.01,8.767e-05,2]
[420619033,1776349844773,-500.0,8.767e-05,2]
[420619034,1776349844782,-906.08,8.767e-05,2]
[420619035,1776349844792,-500.0,8.767e-05,2]
[420619036,1776349844801,-1034.13,8.767e-05,2]
[420619037,1776349844810,-500.0,8.767e-05,2]
[420619038,1776349844820,-500.0,8.767e-05,2]
[420619039,1776349844831,-200.23444348,8.848e-05,2]
[420619040,1776349844840,-537.6845,8.848e-05,2]
[420619041,1776349844850,-1433.383222,8.848e-05,2]
[420619042,1776349844859,-537.6845,8.848e-05,2]
[420619043,1776349844869,-2150.738,8.848e-05,2]
[420619044,1776349844880,-156.587,8.848e-05,2]
[420619045,1776349844890,-791.0,8.9e-05,2]
[420619046,1776349844900,-557.5788265,8.903e-05,2]
[420619047,1776349844909,-578.20924308,8.958e-05,2]
[420619048,1776349844918,-3185.63112098,9e-05,2]
[420619049,1776349844928,-9865.0429808,9e-05,2]
[420619050,1776349844939,-599.60298507,9.013e-05,2]
[420619051,1776349844949,-189.014003,9.039e-05,2]
[420619052,1776349844958,-1089.5349,9.041e-05,2]
[420619053,1776349844968,-500.0,9.041e-05,2]
[420619054,1776349844977,-960.64,9.041e-05,2]
[420619055,1776349844987,-514.8,9.041e-05,2]
[420619056,1776349844996,-1027.71,9.041e-05,2]
[420619057,1776349845006,-1057.91,9.041e-05,2]
[420619058,1776349845015,-500.0,9.041e-05,2]
[420619059,1776349845024,-500.0,9.041e-05,2]
[420619060,1776349845033,-500.0,9.041e-05,2]
[420619061,1776349845043,-1248.39,9.041e-05,2]
[420619062,1776349845052,-500.0,9.041e-05,2]
[420619063,1776349845062,-500.0,9.041e-05,2]
[420619064,1776349845077,-564.9463555,9.041e-05,2]
[420619065,1776349845092,-609.53,9.041e-05,2]
[420619066,1776349845106,-605.9348418,9.041e-05,2]
[420619067,1776349845120,-542.37,9.041e-05,2]
[420619068,1776349845134,-351.28042742,9.041e-05,2]
[420619069,1776349845147,-500.0,9.041e-05,2]
[420619070,1776349845159,-526.86,9.041e-05,2]
[420619071,1776349845173,-500.0,9.041e-05,2]
[420619072,1776349845187,-500.0,9.041e-05,2]
[420619073,1776349845200,-500.0,9.041e-05,2]
[420619074,1776349845213,-500.0,9.041e-05,2]
[420619075,1776349845227,-500.0,9.041e-05,2]
[420619076,1776349845239,-500.0,9.041e-05,2]
[420619077,1776349845251,-500.0,9.041e-05,2]
[420619078,1776349845265,-500.0,9.041e-05,2]
[420619079,1776349845279,-510.7274011,9.041e-05,2]
[420619080,1776349845290,-575.27,9.041e-05,2]
[420619081,1776349845301,-506.62124317,9.041e-05,2]
[420619082,1776349845313,-500.0,9.041e-05,2]
[420619083,1776349845327,-500.0,9.041e-05,2]
[420619084,1776349845341,-500.0,9.041e-05,2]
[420619085,1776349845354,-500.0,9.041e-05,2]
[420619086,1776349845366,-500.0,9.041e-05,2]
[420619087,1776349845381,-978.16,9.041e-05,2]
[420619088,1776349845394,-713.5,9.041e-05,2]
[420619089,1776349845408,-500.0,9.041e-05,2]
[420619090,1776349845419,-500.0,9.041e-05,2]
[420619091,1776349845429,-565.1,9.041e-05,2]
[420619092,1776349845440,-1486.68,9.041e-05,2]
[420619093,1776349845455,-500.0,9.041e-05,2]
[420619094,1776349845468,-1686.34,9.041e-05,2]
[420619095,1776349845479,-500.0,9.041e-05,2]
[420619096,1776349845492,-1432.92,9.041e-05,2]
[420619097,1776349845505,-500.0,9.041e-05,2]
[420619098,1776349845517,-500.0,9.041e-05,2]
[420619099,1776349845531,-500.0,9.041e-05,2]
[420619100,1776349845543,-1180.49,9.041e-05,2]
[420619101,1776349845553,-500.0,9.041e-05,2]
[420619102,1776349845563,-1089.22,9.041e-05,2]
[420619103,1776349845574,-500.0,9.041e-05,2]
[420619104,1776349845586,-2144.56,9.041e-05,2]
[420619105,1776349845597,-2230.24,9.041e-05,2]
[420619106,1776349845608,-500.0,9.041e-05,2]
[420619107,1776349845620,-500.0,9.041e-05,2]
[420619108,1776349845632,-545.97,9.041e-05,2]
[420619109,1776349845643,-900.42,9.041e-05,2]
[420619110,1776349845655,-815.34,9.041e-05,2]
[420619111,1776349845666,-500.0,9.041e-05,2]
[420619112,1776349845677,-300.81365751,9.041e-05,2]
[420619113,1776349845688,-802.57,9.041e-05,2]
[420619114,1776349845700,-1203.0,9.041e-05,2]
[420619115,1776349845711,-992.47,9.041e-05,2]
[420619116,1776349845722,-2089.18,9.041e-05,2]
[420619117,1776349845734,-1168.53,9.041e-05,2]
[420619118,1776349845745,-776.67,9.041e-05,2]
[420619119,1776349845757,-652.34,9.041e-05,2]
[420619120,1776349845768,-458.35923175,9.041e-05,2]
[420619121,1776349845780,-1011.5,9.041e-05,2]
[420619122,1776349845794,-513.39395882,9.041e-05,2]
[420619123,1776349845805,-500.0,9.041e-05,2]
[420619124,1776349845817,-696.84,9.041e-05,2]
[420619125,1776349845828,-500.0,9.041e-05,2]
[420619126,1776349845840,-5072.71,9.041e-05,2]
[420619128,1776349845851,-4631.84,9.041e-05,2]
[420619129,1776349845862,-4886.26,9.041e-05,2]
[420619130,1776349845873,-4617.27,9.041e-05,2]
[420619131,1776349845884,-997.19,9.041e-05,2]
[420619132,1776349845896,-500.0,9.041e-05,2]
[420619133,1776349845908,-500.0,9.041e-05,2]
[420619134,1776349845919,-614.02,9.041e-05,2]
[420619135,1776349845931,-520.65,9.041e-05,2]
[420619136,1776349845943,-777.18,9.041e-05,2]
[420619137,1776349845956,-500.0,9.041e-05,2]
[420619138,1776349845967,-438.05288336,9.041e-05,2]
[420619139,1776349845979,-945.99,9.041e-05,2]
[420619140,1776349845990,-500.0,9.041e-05,2]
[420619141,1776349846002,-1435.11,9.041e-05,2]
[420619142,1776349846013,-538.67,9.041e-05,2]
[420619143,1776349846025,-647.84,9.041e-05,2]
[420619144,1776349846036,-713.21,9.041e-05,2]
[420619145,1776349846048,-1896.62,9.041e-05,2]
[420619146,1776349846060,-500.0,9.041e-05,2]
[420619147,1776349846072,-629.75,9.041e-05,2]
[420619148,1776349846083,-500.0,9.041e-05,2]
[420619149,1776349846095,-500.0,9.041e-05,2]
[420619150,1776349846107,-500.0,9.041e-05,2]
[420619151,1776349846119,-630.18,9.041e-05,2]
[420619152,1776349846131,-890.38,9.041e-05,2]
[420619153,1776349846143,-500.0,9.041e-05,2]
[420619154,1776349846155,-4667.01,9.041e-05,2]
[420619155,1776349846166,-1909.41,9.041e-05,2]
[420619156,1776349846178,-500.0,9.041e-05,2]
[420619157,1776349846190,-500.0,9.041e-05,2]
[420619158,1776349846201,-502.6,9.041e-05,2]
[420619159,1776349846213,-1820.83,9.041e-05,2]
[420619160,1776349846225,-1348.39,9.041e-05,2]
[420619161,1776349846236,-3132.46,9.041e-05,2]
[420619162,1776349846248,-19877.83683594,9.041e-05,2]
[420619163,1776349846274,-2035.49424239,9.041e-05,2]
[420619164,1776349846288,-1135.66892167,9.041e-05,2]
[420619165,1776349846299,-623.2,9.041e-05,2]
[420619166,1776349846311,-500.0,9.041e-05,2]
[420619167,1776349846323,-500.0,9.041e-05,2]
[420619168,1776349846335,-1872.60047322,9.041e-05,2]
[420619171,1776349847093,-2675.67952678,9.041e-05,2]
[420619172,1776349847103,-500.0,9.041e-05,2]
[420619173,1776349847113,-149.96035148,9.041e-05,2]
[420619174,1776349847124,-499.528,9.041e-05,2]
[420619175,1776349847145,-261.0,9.041e-05,2]
[420619176,1776349847187,-1351.01194729,9.041e-05,2]
[420619177,1776349847198,-24151.27970123,9.041e-05,2]
[420619178,1776349847207,-1412.28,9.041e-05,2]
[420619179,1776349847217,-5627.94,9.041e-05,2]
[420619180,1776349847226,-1679.67,9.041e-05,2]
[420619181,1776349847235,-444.53271909,9.041e-05,2]
[420619182,1776349847246,-55.46728091,9.041e-05,2]
[420619183,1776349847255,-391.83603104,9.041e-05,2]
[420619184,1776349847264,-11062.51203354,9.041e-05,2]
[420619274,1776351032792,-5000.0,6.517e-05,2]
[420619276,1776351032801,-353.83352729,6.55e-05,2]
[420619278,1776351032811,-514.0,6.583e-05,2]
[420619280,1776351032820,-165.806354,6.853e-05,2]
[420619282,1776351032830,-442.11446693,6.919e-05,2]
[420619284,1776351032840,-300.0,6.919e-05,2]
[420619286,1776351032849,-300.0,6.919e-05,2]
[420619288,1776351032858,-64.83543521,6.919e-05,2]
[420619329,1776351039000,-657.07172717,6.452e-05,2]
[420619347,1776351041073,-4342.92827283,6.452e-05,2]
[420619349,1776351041083,-235.16456479,6.919e-05,2]
[420619350,1776351041093,-300.0,6.919e-05,2]
[420619352,1776351041103,-300.0,6.919e-05,2]
[420619354,1776351041113,-300.0,6.919e-05,2]
[420619356,1776351041122,-300.0,6.919e-05,2]
[420619357,1776351041132,-300.0,6.919e-05,2]
[420619359,1776351041142,-300.0,6.919e-05,2]
[420619360,1776351041151,-300.0,6.919e-05,2]
[420619361,1776351041161,-300.0,6.919e-05,2]
[420619362,1776351041171,-300.0,6.919e-05,2]
[420619363,1776351041180,-195.72027596,6.919e-05,2]
[420619364,1776351041207,-104.27972404,6.919e-05,2]
[420619365,1776351041217,-300.0,6.919e-05,2]
[420619366,1776351041227,-300.0,6.919e-05,2]
[420619367,1776351041237,-600.0,7.056e-05,2]
[420619368,1776351041247,-500.0,7.595e-05,2]
[420619369,1776351041257,-440.92779339,7.595e-05,2]
[420619370,1776351041267,-500.0,7.595e-05,2]
[420619371,1776351041277,-500.0,7.595e-05,2]
[420619372,1776351041287,-500.0,7.595e-05,2]
[420619373,1776351041297,-500.0,7.595e-05,2]
[420619374,1776351041308,-500.0,7.595e-05,2]
[420619375,1776351041318,-500.0,7.595e-05,2]
[420619376,1776351041328,-500.0,7.595e-05,2]
[420619377,1776351041338,-500.0,7.595e-05,2]
[420619378,1776351041348,-500.0,7.595e-05,2]
[420619379,1776351041358,-500.0,7.595e-05,2]
[420619380,1776351041367,-500.0,7.595e-05,2]
[420619381,1776351041377,-500.0,7.595e-05,2]
[420619382,1776351041387,-500.0,7.595e-05,2]
[420619383,1776351041396,-500.0,7.595e-05,2]
[420619384,1776351041406,-500.0,7.595e-05,2]
[420619385,1776351041416,-500.0,7.595e-05,2]
[420619386,1776351041427,-500.0,7.595e-05,2]
[420619387,1776351041437,-500.0,7.595e-05,2]
[420619388,1776351041447,-500.0,7.595e-05,2]
[420619389,1776351041457,-500.0,7.595e-05,2]
[420619390,1776351041467,-500.0,7.595e-05,2]
[420619391,1776351041476,-500.0,7.595e-05,2]
[420619392,1776351041486,-468.55887535,7.595e-05,2]
[420619393,1776351041497,-500.0,7.595e-05,2]
[420619394,1776351041506,-500.0,7.595e-05,2]
[420619395,1776351041520,-500.0,7.595e-05,2]
[420619396,1776351041530,-500.0,7.595e-05,2]
[420619397,1776351041540,-500.0,7.595e-05,2]
[420619398,1776351041550,-500.0,7.595e-05,2]
[420619399,1776351041560,-500.0,7.595e-05,2]
[420619400,1776351041570,-500.0,7.595e-05,2]
[420619401,1776351041580,-500.0,7.595e-05,2]
[420619402,1776351041590,-500.0,7.595e-05,2]
[420619403,1776351041599,-500.0,7.595e-05,2]
[420619404,1776351041609,-500.0,7.595e-05,2]
[420619405,1776351041618,-564.82313008,7.595e-05,2]
[420619406,1776351041628,-500.0,7.595e-05,2]
[420619407,1776351041638,-500.0,7.595e-05,2]
[420619408,1776351041647,-500.0,7.595e-05,2]
[420619409,1776351041657,-500.0,7.595e-05,2]
[420619410,1776351041666,-500.0,7.595e-05,2]
[420619411,1776351041676,-500.0,7.595e-05,2]
[420619412,1776351041686,-500.0,7.595e-05,2]
[420619413,1776351041696,-500.0,7.595e-05,2]
[420619414,1776351041705,-346.31736447,7.595e-05,2]
[420619415,1776351041715,-500.0,7.595e-05,2]
[420619416,1776351041725,-500.0,7.595e-05,2]
[420619417,1776351041735,-500.0,7.595e-05,2]
[420619418,1776351041744,-500.0,7.595e-05,2]
[420619419,1776351041755,-500.0,7.595e-05,2]
[420619420,1776351041765,-500.0,7.595e-05,2]
[420619421,1776351041775,-500.0,7.595e-05,2]
[420619422,1776351041785,-500.0,7.595e-05,2]
[420619423,1776351041797,-500.0,7.595e-05,2]
[420619424,1776351041807,-500.0,7.595e-05,2]
[420619425,1776351041819,-500.0,7.595e-05,2]
[420619426,1776351041830,-500.0,7.595e-05,2]
[420619427,1776351041840,-500.0,7.595e-05,2]
[420619428,1776351041850,-500.0,7.595e-05,2]
[420619429,1776351041860,-500.0,7.595e-05,2]
[420619430,1776351041870,-500.0,7.595e-05,2]
[420619431,1776351041880,-500.0,7.595e-05,2]
[420619432,1776351041891,-500.0,7.595e-05,2]
[420619433,1776351041901,-500.0,7.595e-05,2]
[420619434,1776351041912,-500.0,7.595e-05,2]
[420619435,1776351041922,-500.0,7.595e-05,2]
[420619436,1776351041931,-500.0,7.595e-05,2]
[420619437,1776351041942,-500.0,7.595e-05,2]
[420619438,1776351041953,-500.0,7.595e-05,2]
[420619439,1776351041962,-500.0,7.595e-05,2]
[420619440,1776351041973,-500.0,7.595e-05,2]
[420619441,1776351041982,-500.0,7.595e-05,2]
[420619442,1776351041992,-798.93076992,7.596e-05,2]
[420619443,1776351042002,-798.93076992,7.596e-05,2]
[420619444,1776351042012,-798.93076992,7.596e-05,2]
[420619445,1776351042022,-798.93076992,7.596e-05,2]
[420619446,1776351042032,-798.93076992,7.596e-05,2]
[420619447,1776351042042,-798.93076992,7.596e-05,2]
[420619448,1776351042052,-798.93076992,7.596e-05,2]
[420619449,1776351042062,-798.93076992,7.596e-05,2]
[420619450,1776351042071,-798.93076992,7.596e-05,2]
[420619451,1776351042082,-798.93076992,7.596e-05,2]
[420619452,1776351042092,-798.93076992,7.596e-05,2]
[420619453,1776351042102,-798.93076992,7.596e-05,2]
[420619454,1776351042113,-798.93076992,7.596e-05,2]
[420619455,1776351042123,-798.93076992,7.596e-05,2]
[420619456,1776351042133,-798.93076992,7.596e-05,2]
[420619457,1776351042143,-798.93076992,7.596e-05,2]
[420619458,1776351042153,-798.93076992,7.596e-05,2]
[420619459,1776351042163,-798.93076992,7.596e-05,2]
[420619460,1776351042173,-500.0,7.596e-05,2]
[420619461,1776351042183,-368.63199177,7.596e-05,2]
[420619462,1776351042193,-798.93076992,7.596e-05,2]
[420619463,1776351042202,-1259.09012037,7.596e-05,2]
[420619464,1776351042212,-1259.09012037,7.596e-05,2]
[420619465,1776351042223,-1259.09012037,7.596e-05,2]
[420619466,1776351042233,-1259.09012037,7.596e-05,2]
[420619467,1776351042243,-1259.09012037,7.596e-05,2]
[420619468,1776351042253,-1259.09012037,7.596e-05,2]
[420619469,1776351042263,-1259.09012037,7.596e-05,2]
[420619470,1776351042273,-1259.09012037,7.596e-05,2]
[420619471,1776351042283,-1259.09012037,7.596e-05,2]
[420619472,1776351042292,-158.04239423,7.596e-05,2]
[420619473,1776351042302,-7335.37366801,7.597e-05,2]
[420619474,1776351042311,-61792.73486917,7.597e-05,2]
[420619480,1776351047477,-311.545,6.387e-05,2]
[420619481,1776351047488,-500.0,7.595e-05,2]
[420619482,1776351047499,-9235.79786115,7.597e-05,2]
[420619483,1776351047530,-24123.35591975,7.597e-05,2]
[420619484,1776351047541,-147776.0,7.597e-05,2]
[420619486,1776351048047,-10803.36995171,7.597e-05,2]
[420619605,1776351193556,3000.0,9e-05,30]
[420619606,1776351445004,-151.0,9.01e-05,30]
[420619607,1776351446666,-151.0,9.01e-05,30]
[420619608,1776351447941,-151.0,9.01e-05,30]
[420619609,1776351576359,5000.0,3.002e-05,2]
[420619610,1776351601871,5000.0,9e-05,30]
[420619611,1776351642452,-151.0,6.978e-05,18]
[420619612,1776351642559,5000.0,3.002e-05,2]
[420619613,1776351644049,-149.0,6.978e-05,18]
[420619615,1776351662605,-151.0,6.978e-05,5]
[420619616,1776351662638,-372.0,7.018e-05,2]
[420619617,1776351662671,-353.58807321,7.018e-05,2]
[420619618,1776351662693,-151.0,7.058e-05,2]
[420619619,1776351662708,-372.0,7.058e-05,2]
[420619620,1776351662724,-353.58807321,7.058e-05,2]
[420619621,1776351662736,-3891.82385358,7.058e-05,2]
[420619623,1776351746633,-181.76059233,0.00015,120]
[420619624,1776351746692,-179.6570679,0.00016881,120]
[420619625,1776351746728,-248.63632677,0.00016915,120]
[420619626,1776351746764,-224.85413024,0.0001698,120]
[420619627,1776351746802,-152.47288456,0.00017422,120]
[420619628,1776351746836,-169.74174846,0.00017422,120]
[420619629,1776351746873,-246.61244089,0.00017432,120]
[420619630,1776351746911,-2846.96059868,0.00017442,120]
[420619631,1776351746946,-3959.87729616,0.00017442,120]
[420619632,1776351746980,-238.90505426,0.00017473,120]
[420619633,1776351747016,-261.72262418,0.00017473,120]
[420619634,1776351747051,-194.99977779,0.00017489,120]
[420619635,1776351747085,-198.98735269,0.00017489,120]
[420619636,1776351747118,-258.13653093,0.00017489,120]
[420619637,1776351747152,-349.74961959,0.00017524,120]
[420619638,1776351747188,-1109.08458663,0.00017544,120]
[420619639,1776351747222,-813.8254877,0.00017544,120]
[420619640,1776351747257,-739.83732269,0.00017544,120]
[420619641,1776351747293,-263.90837982,0.00017602,120]
[420619642,1776351747327,-2846.96059868,0.00017607,120]
[420619643,1776351747363,-3959.87729616,0.00017607,120]
[420619644,1776351747398,-913.11829316,0.00017611,120]
[420619645,1776351747433,-1167.59358306,0.00017611,120]
[420619646,1776351747467,-336.03644636,0.00017717,120]
[420619647,1776351747502,-220.09033621,0.00017733,120]
[420619648,1776351747536,-440.18067252,0.00017738,120]
[420619649,1776351747572,-2846.96059868,0.00017773,120]
[420619650,1776351747608,-3959.87729616,0.00017773,120]
[420619651,1776351747643,-1109.08458663,0.00017824,120]
[420619652,1776351747677,-813.8254877,0.00017824,120]
[420619653,1776351747711,-739.83732269,0.00017824,120]
[420619654,1776351747746,-913.11829316,0.00017892,120]
[420619655,1776351747782,-1167.59358306,0.00017892,120]
[420619656,1776351747814,-2846.96059868,0.00017938,120]
[420619657,1776351747848,-3959.87729616,0.00017938,120]
[420619658,1776351747882,-339.0939532,0.00017955,120]
[420619659,1776351747916,-440.18067252,0.00018024,120]
[420619660,1776351747948,-349.74961959,0.00018103,120]
[420619661,1776351747980,-813.8254877,0.00018103,120]
[420619662,1776351748014,-913.11829316,0.00018174,120]
[420619663,1776351748044,-1167.59358306,0.00018174,120]
[420619664,1776351748077,-255.49185753,0.00018174,120]
[420619665,1776351748111,-168.01822315,0.00018265,120]
[420619666,1776351748154,-3191.1911332,0.0002,120]
[420619667,1776351748210,-3200.0,0.00024,120]
[420619697,1776351951439,1580.0,0.00021321,120]
[420619698,1776351953037,1580.0,0.00022387,120]
[420619699,1776351954654,1580.0,0.00023506,120]